[Event "Chestnut 2nd Category Final 2025"]
[Site "Kyiv"]
[Date "2025.04.06"]
[Round "7.2"]
[White "Atamanchuk, Dmytro"]
[Black "Prykhodko, Artem"]
[Result "1-0"]
[Annotator "NA"]
[ECO "D37"]
[WhiteElo "1493"]
[BlackElo "1678"]
[PlyCount "97"]
[EventDate "2025.04.03"]
[EventCountry "UKR"]
[SourceTitle "playchess.com"]
[Source "ChessBase"]
[SourceQuality "1"]
[TimeControl "600+5"]

1. d4 {[%emt 0:00:02]} Nf6 {[%emt 0:00:02]} 2. c4 {[%emt 0:00:01]} e6 {[%emt 0:00:01]} 3. Nf3 {[%emt 0:00:01]} d5 {[%emt 0:00:02]} 4. Nc3 {[%emt 0:00:01]} Be7 {[%emt 0:00:06]} 5. cxd5 {[%emt 0:00:03]} Nxd5 {[%emt 0:00:03]} 6. e4 {[%emt 0:00:02]} Nxc3 {[%emt 0:00:04]} 7. bxc3 {[%emt 0:00:01]} c5 {[%emt 0:00:03]} 8. Be2 {[%emt 0:00:11]} Nc6 {[%emt 0:00:09]} 9. Be3 {[%emt 0:00:13]} cxd4 {[%emt 0:00:12]} 10. cxd4 {[%emt 0:00:02]} Bb4+ {[%emt 0:00:05]} 11. Kf1 {[%emt 0:00:07]} O-O {[%emt 0:00:10]} 12. Kg1 {[%emt 0:00:15]} b6 {[%emt 0:00:30]} 13. h3 {[%emt 0:00:04]} Bb7 {[%emt 0:00:08]} 14. Kh2 {[%emt 0:00:08]} Bd6+ {[%emt 0:00:36]} 15. e5 {[%emt 0:00:14]} Be7 {[%emt 0:00:01]} 16. Re1 {[%emt 0:00:02]} Qd5 {[%emt 0:00:31]} 17. Rc1 {[%emt 0:00:42]} Ba3 {[%emt 0:00:27]} 18. Rc2 {[%emt 0:00:09]} Bb4 {[%emt 0:00:03]} 19. Rf1 {[%emt 0:00:13]} b5 {[%emt 0:00:24]} 20. Qa1 {[%emt 0:00:17]} Ne7 {[%emt 0:00:13]} 21. Rfc1 {[%emt 0:00:38]} Ba3 {[%emt 0:00:15]} 22. Rd1 {[%emt 0:00:16]} Ng6 {[%emt 0:00:14]} 23. Ne1 {[%emt 0:00:47]} Nh4 {[%emt 0:00:18]} 24. Nf3 {[%emt 0:00:07]} Nf5 {[%emt 0:00:38]} 25. Bc1 {[%emt 0:00:29]} Bb4 {[%emt 0:00:31]} 26. Bb2 {[%emt 0:00:18]} Ba5 {[%emt 0:00:20]} 27. Rc5 {[%emt 0:00:23]} Qe4 {[%emt 0:00:41]} 28. Bxb5 {[%emt 0:01:10]} Nh4 {[%emt 0:00:25]} 29. Rd3 {[%emt 0:00:30]} Nxf3+ {[%emt 0:00:08]} 30. Rxf3 {[%emt 0:00:04]} Qg6 {[%emt 0:00:27]} 31. Rg3 {[%emt 0:00:08]} Qe4 {[%emt 0:00:07]} 32. Bd3 {[%emt 0:00:19]} Qf4 {[%emt 0:00:33]} 33. Rxa5 {[%emt 0:00:36]} Qxf2 {[%emt 0:00:35]} 34. Ra3 {[%emt 0:00:38]} Rab8 {[%emt 0:00:21]} 35. Rb3 {[%emt 0:00:18]} h5 {[%emt 0:00:28]} 36. Qf1 {[%emt 0:00:24]} Qd2 {[%emt 0:00:22]} 37. Qe2 {[%emt 0:00:24]} Qf4 {[%emt 0:00:12]} 38. Qxh5 {[%emt 0:00:18]} g6 {[%emt 0:00:08]} 39. Qg4 Qh6 {[%emt 0:00:46]} 40. Be4 {[%emt 0:01:04]} Bxe4 {[%emt 0:00:16]} 41. Qxe4 {[%emt 0:00:01]} Rxb3 {[%emt 0:00:14]} 42. axb3 {[%emt 0:00:02]} Qd2 {[%emt 0:00:07]} 43. Ba3 {[%emt 0:00:17]} Rc8 {[%emt 0:00:34]} 44. Bc5 {[%emt 0:00:08]} Rc7 {[%emt 0:00:52]} 45. Qd3 {[%emt 0:00:30]} Qa5 {[%emt 0:00:20]} 46. Rg4 {[%emt 0:00:18]} Rd7 {[%emt 0:00:04]} 47. Qe3 {[%emt 0:00:08]} Qc7 {[%emt 0:00:04]} 48. Qh6 {[%emt 0:00:09]} f6 49. Rxg6+ 1-0

[Event "Chestnut 2nd Category Final 2025"]
[Site "Kyiv"]
[Date "2025.04.06"]
[Round "7.3"]
[White "Kulak, Volodymyr"]
[Black "Chornyi, Viktor"]
[Result "1-0"]
[Annotator "NA"]
[ECO "C01"]
[WhiteElo "1607"]
[BlackElo "1515"]
[PlyCount "145"]
[EventDate "2025.04.03"]
[EventCountry "UKR"]
[SourceTitle "playchess.com"]
[Source "ChessBase"]
[SourceQuality "1"]
[TimeControl "600+5"]

1. e4 {[%emt 0:00:02]} e6 {[%emt 0:00:00]} 2. d4 {[%emt 0:00:03]} d5 {[%emt 0:00:01]} 3. exd5 {[%emt 0:00:06]} exd5 {[%emt 0:00:03]} 4. Nf3 {[%emt 0:00:03]} Nf6 {[%emt 0:00:02]} 5. Bd3 {[%emt 0:00:01]} Bg4 {[%emt 0:00:02]} 6. h3 {[%emt 0:00:06]} Bh5 {[%emt 0:00:03]} 7. c3 {[%emt 0:00:21]} Be7 {[%emt 0:00:09]} 8. Bf4 {[%emt 0:00:03]} Nbd7 {[%emt 0:00:14]} 9. Nbd2 {[%emt 0:00:07]} c6 {[%emt 0:00:09]} 10. O-O {[%emt 0:00:07]} Bg6 {[%emt 0:00:10]} 11. Qc2 {[%emt 0:00:10]} Qb6 {[%emt 0:00:09]} 12. Rfe1 {[%emt 0:00:42]} Qd8 {[%emt 0:00:36]} 13. Bxg6 {[%emt 0:00:23]} hxg6 {[%emt 0:00:02]} 14. Bd6 {[%emt 0:00:11]} Ng8 {[%emt 0:00:19]} 15. Re2 {[%emt 0:01:12]} Nf8 {[%emt 0:00:28]} 16. Ba3 {[%emt 0:00:30]} Ne6 {[%emt 0:00:03]} 17. Bxe7 {[%emt 0:00:13]} Nxe7 {[%emt 0:00:04]} 18. Ne5 {[%emt 0:00:45]} Rh6 {[%emt 0:00:22]} 19. Ng4 {[%emt 0:00:44]} Rh8 {[%emt 0:00:07]} 20. Nf3 {[%emt 0:00:26]} Qc7 {[%emt 0:00:17]} 21. Nge5 {[%emt 0:00:54]} Rf8 {[%emt 0:00:26]} 22. Qd2 {[%emt 0:01:48]} O-O-O {[%emt 0:00:12]} 23. Nxf7 {[%emt 0:00:39]} Nf4 {[%emt 0:00:57]} 24. Nxd8 {[%emt 0:00:09]} Nxe2+ {[%emt 0:00:04]} 25. Qxe2 {[%emt 0:00:06]} Qxd8 {[%emt 0:00:06]} 26. Re1 {[%emt 0:00:06]} Re8 {[%emt 0:00:01]} 27. Qd2 {[%emt 0:00:04]} Nf5 {[%emt 0:00:12]} 28. Rxe8 {[%emt 0:00:09]} Qxe8 {[%emt 0:00:02]} 29. Qe1 {[%emt 0:00:06]} Qxe1+ {[%emt 0:00:10]} 30. Nxe1 {[%emt 0:00:02]} g5 {[%emt 0:00:04]} 31. Nf3 {[%emt 0:00:09]} Nd6 {[%emt 0:00:09]} 32. Nxg5 {[%emt 0:00:25]} Nc4 {[%emt 0:00:03]} 33. b3 {[%emt 0:00:04]} Na3 {[%emt 0:00:05]} 34. Ne6 {[%emt 0:00:19]} g6 {[%emt 0:00:04]} 35. Nf4 {[%emt 0:00:03]} g5 {[%emt 0:00:04]} 36. Ne6 {[%emt 0:00:02]} Nb1 {[%emt 0:00:16]} 37. c4 {[%emt 0:00:27]} dxc4 {[%emt 0:00:11]} 38. bxc4 {[%emt 0:00:01]} Na3 {[%emt 0:00:05]} 39. Nxg5 {[%emt 0:00:15]} Nxc4 {[%emt 0:00:02]} 40. h4 {[%emt 0:00:08]} Kd7 {[%emt 0:00:02]} 41. h5 {[%emt 0:00:11]} Ke7 {[%emt 0:00:01]} 42. h6 {[%emt 0:00:01]} Kf6 {[%emt 0:00:01]} 43. h7 {[%emt 0:00:04]} Kg7 44. f4 {[%emt 0:00:14]} b6 {[%emt 0:00:11]} 45. f5 {[%emt 0:00:09]} Nd6 {[%emt 0:00:04]} 46. f6+ {[%emt 0:00:06]} Kh8 {[%emt 0:00:17]} 47. f7 {[%emt 0:00:15]} Nxf7 {[%emt 0:00:02]} 48. Nxf7+ {[%emt 0:00:02]} Kxh7 {[%emt 0:00:02]} 49. Kf2 {[%emt 0:00:03]} Kg7 {[%emt 0:00:02]} 50. Ne5 {[%emt 0:00:02]} c5 {[%emt 0:00:01]} 51. dxc5 {[%emt 0:00:02]} bxc5 {[%emt 0:00:02]} 52. Ke3 {[%emt 0:00:01]} Kf6 {[%emt 0:00:02]} 53. Nc4 {[%emt 0:00:01]} Ke6 {[%emt 0:00:09]} 54. g4 {[%emt 0:00:00]} Kd5 {[%emt 0:00:01]} 55. Kd3 {[%emt 0:00:00]} a6 {[%emt 0:00:04]} 56. g5 {[%emt 0:00:00]} Ke6 {[%emt 0:00:02]} 57. g6 {[%emt 0:00:00]} Kf6 {[%emt 0:00:02]} 58. g7 {[%emt 0:00:00]} Kxg7 {[%emt 0:00:02]} 59. Ke4 {[%emt 0:00:00]} Kf6 {[%emt 0:00:01]} 60. Kd5 {[%emt 0:00:00]} Kf5 {[%emt 0:00:01]} 61. Kxc5 Ke6 {[%emt 0:00:04]} 62. a4 {[%emt 0:00:00]} Kd7 {[%emt 0:00:01]} 63. Kb6 {[%emt 0:00:00]} Kc8 {[%emt 0:00:01]} 64. Kxa6 {[%emt 0:00:00]} Kb8 {[%emt 0:00:01]} 65. Kb6 {[%emt 0:00:00]} Ka8 {[%emt 0:00:01]} 66. a5 {[%emt 0:00:00]} Kb8 {[%emt 0:00:01]} 67. a6 {[%emt 0:00:00]} Ka8 {[%emt 0:00:01]} 68. Na5 {[%emt 0:00:00]} Kb8 {[%emt 0:00:01]} 69. Nb3 {[%emt 0:00:00]} Ka8 {[%emt 0:00:01]} 70. Nd4 {[%emt 0:00:00]} Kb8 {[%emt 0:00:01]} 71. Ne6 {[%emt 0:00:00]} Ka8 {[%emt 0:00:01]} 72. Nc7+ {[%emt 0:00:00]} Kb8 {[%emt 0:00:01]} 73. a7+ {[%emt 0:00:00]} 1-0

[Event "Chestnut 2nd Category Final 2025"]
[Site "Kyiv"]
[Date "2025.04.06"]
[Round "7.4"]
[White "Voloshyn, Maksym"]
[Black "Udod, Oleksandra"]
[Result "1/2-1/2"]
[Annotator "NA"]
[ECO "A01"]
[WhiteElo "1621"]
[BlackElo "1646"]
[PlyCount "37"]
[EventDate "2025.04.03"]
[EventCountry "UKR"]
[SourceTitle "playchess.com"]
[Source "ChessBase"]
[SourceQuality "1"]
[TimeControl "600+5"]

1. b3 d5 2. Bb2 Nc6 3. e3 a6 4. Nf3 Nf6 5. c4 Bf5 6. d4 Nb4 7. Na3 h6 8. Qd2 Nc6 9. cxd5 Ne4 10. Qe2 {[%emt 0:01:50]} Qxd5 {[%emt 0:05:10]} 11. Nd2 {[%emt 0:01:21]} Nxd2 {[%emt 0:01:15]} 12. Qxd2 {[%emt 0:00:06]} e6 {[%emt 0:00:02]} 13. Bc4 {[%emt 0:00:14]} Qxg2 {[%emt 0:00:15]} 14. O-O-O {[%emt 0:00:17]} b5 {[%emt 0:00:31]} 15. Bd3 {[%emt 0:00:13]} Bxd3 {[%emt 0:00:16]} 16. Qxd3 {[%emt 0:00:02]} Bxa3 {[%emt 0:00:09]} 17. Bxa3 {[%emt 0:00:04]} Qxf2 {[%emt 0:00:08]} 18. Qe4 {[%emt 0:00:09]} Ne7 {[%emt 0:01:23]} 19. Rd2 {[%emt 0:00:08]} 1/2-1/2

[Event "Chestnut 2nd Category Final 2025"]
[Site "Kyiv"]
[Date "2025.04.06"]
[Round "7.5"]
[White "Ruzhanskyi, Kiril"]
[Black "Diachuk, Ihor"]
[Result "1-0"]
[Annotator "NA"]
[ECO "D00"]
[WhiteElo "1534"]
[BlackElo "1550"]
[PlyCount "107"]
[EventDate "2025.04.03"]
[EventCountry "UKR"]
[SourceTitle "playchess.com"]
[Source "ChessBase"]
[SourceQuality "1"]
[TimeControl "600+5"]

1. d4 {[%emt 0:00:02]} d5 {[%emt 0:00:01]} 2. g3 {[%emt 0:00:02]} e6 {[%emt 0:00:02]} 3. Bg2 {[%emt 0:00:01]} Bd7 {[%emt 0:00:04]} 4. c3 {[%emt 0:00:01]} Nc6 {[%emt 0:00:02]} 5. Nf3 {[%emt 0:00:03]} Nf6 {[%emt 0:00:02]} 6. Bg5 {[%emt 0:00:03]} Be7 {[%emt 0:00:03]} 7. Nbd2 {[%emt 0:00:01]} h6 {[%emt 0:00:02]} 8. Bxf6 {[%emt 0:00:02]} Bxf6 {[%emt 0:00:02]} 9. O-O {[%emt 0:00:10]} O-O {[%emt 0:00:03]} 10. e4 {[%emt 0:00:02]} Be7 {[%emt 0:00:55]} 11. Re1 {[%emt 0:00:17]} dxe4 {[%emt 0:00:14]} 12. Nxe4 {[%emt 0:00:04]} Bd6 {[%emt 0:00:03]} 13. Nfd2 {[%emt 0:00:12]} Rb8 {[%emt 0:00:22]} 14. Nc4 {[%emt 0:00:03]} Qe7 {[%emt 0:00:08]} 15. Nexd6 {[%emt 0:00:06]} cxd6 {[%emt 0:00:02]} 16. d5 {[%emt 0:01:01]} Ne5 {[%emt 0:00:31]} 17. Nxe5 {[%emt 0:00:03]} dxe5 {[%emt 0:00:02]} 18. Rxe5 {[%emt 0:00:05]} Qd6 {[%emt 0:00:02]} 19. Re1 {[%emt 0:00:06]} exd5 {[%emt 0:00:05]} 20. Qxd5 {[%emt 0:00:05]} Qxd5 {[%emt 0:00:03]} 21. Bxd5 {[%emt 0:00:02]} Rfd8 {[%emt 0:00:27]} 22. Rad1 {[%emt 0:00:04]} Bf5 {[%emt 0:00:25]} 23. Bg2 {[%emt 0:00:10]} b6 {[%emt 0:00:07]} 24. h4 {[%emt 0:00:25]} Be6 {[%emt 0:00:34]} 25. a3 {[%emt 0:00:07]} Bb3 {[%emt 0:00:04]} 26. Rxd8+ {[%emt 0:00:17]} Rxd8 {[%emt 0:00:01]} 27. Re7 {[%emt 0:00:02]} Rd1+ {[%emt 0:00:02]} 28. Kh2 {[%emt 0:00:01]} Rd2 {[%emt 0:00:06]} 29. Be4 {[%emt 0:00:23]} g6 {[%emt 0:00:09]} 30. Kg2 {[%emt 0:00:15]} Rxb2 {[%emt 0:00:08]} 31. Rxa7 {[%emt 0:00:02]} b5 {[%emt 0:00:02]} 32. Rb7 {[%emt 0:00:10]} Bc4 {[%emt 0:00:04]} 33. a4 {[%emt 0:00:11]} Rb3 {[%emt 0:00:05]} 34. axb5 {[%emt 0:00:08]} Rxc3 {[%emt 0:00:03]} 35. Rc7 {[%emt 0:00:09]} Bf1+ {[%emt 0:00:15]} 36. Kxf1 {[%emt 0:00:05]} Rxc7 {[%emt 0:00:02]} 37. b6 {[%emt 0:00:01]} Rc8 {[%emt 0:00:02]} 38. b7 {[%emt 0:00:02]} Rb8 {[%emt 0:00:01]} 39. Ke2 {[%emt 0:00:01]} Kf8 {[%emt 0:00:01]} 40. Kd3 {[%emt 0:00:00]} Ke7 {[%emt 0:00:01]} 41. Kd4 {[%emt 0:00:01]} Kd6 {[%emt 0:00:01]} 42. g4 {[%emt 0:00:04]} f5 {[%emt 0:00:08]} 43. gxf5 {[%emt 0:00:05]} gxf5 {[%emt 0:00:02]} 44. Bg2 {[%emt 0:00:15]} h5 {[%emt 0:00:07]} 45. f4 {[%emt 0:00:01]} Rd8 {[%emt 0:00:12]} 46. Bf3 {[%emt 0:00:08]} Rb8 {[%emt 0:00:05]} 47. Kc4 {[%emt 0:00:03]} Ke6 {[%emt 0:00:56]} 48. Kc5 {[%emt 0:00:05]} Ke7 {[%emt 0:00:03]} 49. Kb6 {[%emt 0:00:01]} Kd7 {[%emt 0:00:03]} 50. Bxh5 {[%emt 0:00:13]} Kd6 {[%emt 0:00:09]} 51. Bg6 {[%emt 0:00:08]} Kd7 {[%emt 0:00:25]} 52. Bxf5+ {[%emt 0:00:01]} Kd6 {[%emt 0:00:01]} 53. h5 {[%emt 0:00:08]} Rf8 {[%emt 0:00:16]} 54. Bc8 1-0

[Event "Chestnut 2nd Category Final 2025"]
[Site "Kyiv"]
[Date "2025.04.06"]
[Round "8.1"]
[White "Kravchuk, Sviatoslav"]
[Black "Fabrykator, Myroslava"]
[Result "1/2-1/2"]
[Annotator "NA"]
[ECO "B30"]
[WhiteElo "1441"]
[BlackElo "1457"]
[PlyCount "80"]
[EventDate "2025.04.03"]
[EventCountry "UKR"]
[SourceTitle "playchess.com"]
[Source "ChessBase"]
[SourceQuality "1"]
[TimeControl "600+5"]

1. e4 {[%emt 0:00:01]} c5 {[%emt 0:00:01]} 2. Nf3 {[%emt 0:00:03]} Nc6 {[%emt 0:00:01]} 3. Nc3 {[%emt 0:00:03]} g6 {[%emt 0:00:02]} 4. Bc4 {[%emt 0:00:04]} Bg7 {[%emt 0:00:02]} 5. d3 {[%emt 0:00:06]} d6 {[%emt 0:00:01]} 6. Be3 {[%emt 0:00:03]} Nf6 {[%emt 0:00:02]} 7. h3 {[%emt 0:00:02]} a6 {[%emt 0:00:06]} 8. a4 {[%emt 0:00:02]} O-O {[%emt 0:00:08]} 9. O-O {[%emt 0:00:02]} Bd7 {[%emt 0:00:13]} 10. Qd2 {[%emt 0:00:09]} Rc8 {[%emt 0:00:03]} 11. Bh6 {[%emt 0:00:08]} Re8 {[%emt 0:01:19]} 12. Bxg7 {[%emt 0:00:05]} Kxg7 {[%emt 0:00:03]} 13. Nd5 {[%emt 0:00:13]} Nxd5 {[%emt 0:00:11]} 14. Bxd5 {[%emt 0:00:06]} e6 {[%emt 0:00:20]} 15. Bc4 {[%emt 0:00:03]} Rb8 {[%emt 0:00:43]} 16. Ba2 {[%emt 0:00:15]} b5 {[%emt 0:00:12]} 17. Bb3 {[%emt 0:00:39]} bxa4 {[%emt 0:01:09]} 18. Bxa4 {[%emt 0:00:07]} Nb4 {[%emt 0:01:19]} 19. Bxd7 {[%emt 0:00:13]} Qxd7 {[%emt 0:00:05]} 20. c3 {[%emt 0:00:05]} Nc6 {[%emt 0:00:07]} 21. Rxa6 {[%emt 0:00:22]} Qb7 {[%emt 0:00:03]} 22. Ra2 {[%emt 0:00:02]} Ra8 {[%emt 0:00:13]} 23. Rfa1 {[%emt 0:00:12]} Reb8 {[%emt 0:00:19]} 24. Ng5 {[%emt 0:00:25]} Rxa2 {[%emt 0:00:07]} 25. Rxa2 {[%emt 0:00:03]} Qb3 {[%emt 0:00:06]} 26. Ra1 {[%emt 0:00:12]} Qxb2 {[%emt 0:00:04]} 27. Qxb2 {[%emt 0:00:05]} Rxb2 {[%emt 0:00:02]} 28. Ra3 {[%emt 0:00:25]} Rb1+ {[%emt 0:00:27]} 29. Kh2 {[%emt 0:00:03]} Rd1 {[%emt 0:00:09]} 30. c4 {[%emt 0:00:13]} Ne5 {[%emt 0:00:09]} 31. Ra7 {[%emt 0:00:18]} h6 {[%emt 0:00:24]} 32. Nxe6+ {[%emt 0:00:06]} Kf6 {[%emt 0:00:16]} 33. Nf4 {[%emt 0:00:09]} g5 {[%emt 0:00:59]} 34. Nd5+ {[%emt 0:00:02]} Kg7 {[%emt 0:00:17]} 35. Ra6 {[%emt 0:00:29]} Nxd3 {[%emt 0:00:25]} 36. Rxd6 {[%emt 0:00:08]} Nxf2 {[%emt 0:00:12]} 37. Rc6 {[%emt 0:00:57]} Nxe4 {[%emt 0:00:19]} 38. Ne3 {[%emt 0:00:12]} Rd8 {[%emt 0:00:56]} 39. Nf5+ {[%emt 0:00:03]} Kf8 {[%emt 0:00:16]} 40. Rxh6 {[%emt 0:00:12]} Ke8 1/2-1/2

[Event "Chestnut 2nd Category Final 2025"]
[Site "Kyiv"]
[Date "2025.04.06"]
[Round "8.2"]
[White "Lymar, Makar"]
[Black "Atamanchuk, Dmytro"]
[Result "1-0"]
[Annotator "NA"]
[ECO "D43"]
[WhiteElo "1565"]
[BlackElo "1493"]
[PlyCount "53"]
[EventDate "2025.04.03"]
[EventCountry "UKR"]
[SourceTitle "playchess.com"]
[Source "ChessBase"]
[SourceQuality "1"]
[TimeControl "600+5"]

1. d4 {[%emt 0:00:01]} d5 {[%emt 0:00:01]} 2. c4 {[%emt 0:00:01]} c6 {[%emt 0:00:00]} 3. Nc3 {[%emt 0:00:01]} Nf6 {[%emt 0:00:02]} 4. Nf3 {[%emt 0:00:02]} e6 {[%emt 0:00:01]} 5. Bg5 {[%emt 0:00:01]} Nbd7 {[%emt 0:00:01]} 6. a3 {[%emt 0:00:01]} dxc4 {[%emt 0:00:46]} 7. e4 {[%emt 0:00:04]} Be7 {[%emt 0:00:06]} 8. Bxc4 {[%emt 0:00:15]} h6 {[%emt 0:00:05]} 9. Bh4 {[%emt 0:00:01]} O-O {[%emt 0:00:02]} 10. O-O {[%emt 0:00:02]} Qb6 {[%emt 0:00:26]} 11. e5 {[%emt 0:00:29]} Qxb2 {[%emt 0:01:16]} 12. exf6 {[%emt 0:00:13]} Nxf6 {[%emt 0:00:55]} 13. Bxf6 {[%emt 0:00:08]} Bxf6 {[%emt 0:00:11]} 14. Ne2 {[%emt 0:00:03]} Rd8 {[%emt 0:00:07]} 15. Ra2 {[%emt 0:00:25]} Qb6 {[%emt 0:00:10]} 16. Rd2 {[%emt 0:00:43]} g5 {[%emt 0:00:19]} 17. Ne5 {[%emt 0:00:11]} h5 {[%emt 0:00:18]} 18. Ng3 {[%emt 0:00:10]} h4 {[%emt 0:00:45]} 19. Ne4 {[%emt 0:00:24]} Be7 {[%emt 0:00:13]} 20. Qh5 {[%emt 0:00:22]} Rf8 {[%emt 0:00:39]} 21. Nxg5 {[%emt 0:00:11]} Bxg5 {[%emt 0:00:08]} 22. Qxg5+ {[%emt 0:00:03]} Kh8 {[%emt 0:00:04]} 23. Qxh4+ Kg8 24. Rd3 {[%emt 0:00:15]} Re8 {[%emt 0:00:15]} 25. Qf6 {[%emt 0:00:21]} Qd8 {[%emt 0:00:51]} 26. Qxf7+ {[%emt 0:00:09]} Kh8 {[%emt 0:01:43]} 27. Ng6# {[%emt 0:00:02]} 1-0

[Event "Chestnut 2nd Category Final 2025"]
[Site "Kyiv"]
[Date "2025.04.06"]
[Round "8.3"]
[White "Udod, Oleksandra"]
[Black "Ruzhanskyi, Kiril"]
[Result "0-1"]
[Annotator "NA"]
[ECO "A40"]
[WhiteElo "1646"]
[BlackElo "1534"]
[PlyCount "62"]
[EventDate "2025.04.03"]
[EventCountry "UKR"]
[SourceTitle "playchess.com"]
[Source "ChessBase"]
[SourceQuality "1"]
[TimeControl "600+5"]

1. d4 {[%emt 0:00:01]} g6 {[%emt 0:00:00]} 2. c4 {[%emt 0:00:01]} c6 {[%emt 0:00:01]} 3. Nc3 {[%emt 0:00:02]} d5 {[%emt 0:00:01]} 4. Nf3 {[%emt 0:00:06]} Bg7 {[%emt 0:00:01]} 5. g3 {[%emt 0:00:10]} Bg4 {[%emt 0:00:08]} 6. e3 {[%emt 0:00:30]} Nf6 {[%emt 0:00:12]} 7. cxd5 {[%emt 0:00:35]} cxd5 {[%emt 0:00:05]} 8. Bg2 {[%emt 0:00:03]} Nc6 {[%emt 0:00:03]} 9. Qb3 {[%emt 0:00:09]} Qd7 {[%emt 0:00:39]} 10. Ne5 {[%emt 0:01:09]} Nxe5 {[%emt 0:00:17]} 11. dxe5 {[%emt 0:00:02]} Nh5 {[%emt 0:00:45]} 12. Bxd5 {[%emt 0:00:22]} O-O {[%emt 0:00:07]} 13. Qxb7 {[%emt 0:00:24]} Qxb7 {[%emt 0:00:13]} 14. Bxb7 {[%emt 0:00:02]} Rab8 {[%emt 0:00:01]} 15. f3 {[%emt 0:00:53]} Bh3 {[%emt 0:00:28]} 16. g4 {[%emt 0:00:29]} Rxb7 {[%emt 0:00:08]} 17. gxh5 {[%emt 0:00:01]} Bxe5 {[%emt 0:00:07]} 18. hxg6 {[%emt 0:00:35]} fxg6 {[%emt 0:00:02]} 19. Kf2 {[%emt 0:00:37]} Bg4 {[%emt 0:00:25]} 20. f4 {[%emt 0:00:14]} Bxc3 {[%emt 0:00:32]} 21. bxc3 {[%emt 0:00:03]} Rc8 {[%emt 0:00:13]} 22. h3 {[%emt 0:01:08]} Bh5 {[%emt 0:00:14]} 23. Bd2 {[%emt 0:00:31]} Rb2 {[%emt 0:00:02]} 24. Ke1 {[%emt 0:00:37]} Rd8 {[%emt 0:00:01]} 25. Rh2 {[%emt 0:00:15]} Kf7 {[%emt 0:00:36]} 26. e4 {[%emt 0:00:14]} Bf3 {[%emt 0:00:30]} 27. e5 {[%emt 0:00:02]} Rd3 {[%emt 0:00:08]} 28. Rf2 {[%emt 0:00:15]} Be4 {[%emt 0:00:04]} 29. h4 {[%emt 0:00:42]} Rh3 {[%emt 0:00:27]} 30. Rc1 {[%emt 0:01:15]} Bd3 {[%emt 0:00:42]} 31. Rf3 {[%emt 0:00:53]} Rxf3 {[%emt 0:00:17]} 0-1

[Event "Chestnut 2nd Category Final 2025"]
[Site "Kyiv"]
[Date "2025.04.06"]
[Round "8.4"]
[White "Chornyi, Viktor"]
[Black "Voloshyn, Maksym"]
[Result "1-0"]
[Annotator "NA"]
[ECO "C00"]
[WhiteElo "1515"]
[BlackElo "1621"]
[PlyCount "107"]
[EventDate "2025.04.03"]
[EventCountry "UKR"]
[SourceTitle "playchess.com"]
[Source "ChessBase"]
[SourceQuality "1"]
[TimeControl "600+5"]

1. e4 e6 {[%emt 0:00:01]} 2. Nf3 {[%emt 0:00:02]} d5 {[%emt 0:00:01]} 3. exd5 {[%emt 0:00:02]} exd5 {[%emt 0:00:01]} 4. d4 {[%emt 0:00:01]} Nf6 {[%emt 0:00:02]} 5. Bd3 {[%emt 0:00:02]} Bd6 {[%emt 0:00:01]} 6. h3 {[%emt 0:00:03]} h6 {[%emt 0:00:01]} 7. O-O {[%emt 0:00:02]} O-O {[%emt 0:00:02]} 8. Re1 {[%emt 0:00:02]} c6 {[%emt 0:00:02]} 9. Nc3 {[%emt 0:00:04]} Re8 {[%emt 0:00:04]} 10. Be3 {[%emt 0:00:17]} Qc7 {[%emt 0:00:03]} 11. Qd2 {[%emt 0:00:02]} Nbd7 {[%emt 0:00:26]} 12. Re2 {[%emt 0:00:25]} Nf8 {[%emt 0:00:18]} 13. Rae1 {[%emt 0:00:09]} Bd7 {[%emt 0:00:02]} 14. a3 {[%emt 0:00:09]} a5 {[%emt 0:00:02]} 15. a4 {[%emt 0:00:27]} Ne6 {[%emt 0:00:09]} 16. b3 {[%emt 0:00:03]} Nf4 {[%emt 0:00:13]} 17. Bxf4 {[%emt 0:00:30]} Bxf4 18. Qd1 {[%emt 0:00:01]} Rxe2 {[%emt 0:00:54]} 19. Rxe2 {[%emt 0:00:03]} Re8 {[%emt 0:00:01]} 20. Qe1 {[%emt 0:00:07]} Rxe2 {[%emt 0:00:16]} 21. Qxe2 {[%emt 0:00:02]} Qc8 {[%emt 0:00:04]} 22. Ne5 {[%emt 0:00:28]} Bxe5 {[%emt 0:00:18]} 23. dxe5 {[%emt 0:00:05]} Nh7 {[%emt 0:00:44]} 24. Qf3 {[%emt 0:00:21]} Qe8 {[%emt 0:00:09]} 25. Qe3 {[%emt 0:00:13]} Ng5 {[%emt 0:00:10]} 26. f4 {[%emt 0:00:04]} Ne6 {[%emt 0:00:05]} 27. Ne2 {[%emt 0:00:21]} Qe7 {[%emt 0:00:06]} 28. Nd4 {[%emt 0:00:18]} Qc5 {[%emt 0:00:24]} 29. c3 {[%emt 0:00:06]} Nxd4 {[%emt 0:00:24]} 30. Qxd4 {[%emt 0:00:04]} Kf8 {[%emt 0:00:00]} 31. Kf2 {[%emt 0:00:02]} Ke7 {[%emt 0:00:00]} 32. g4 {[%emt 0:00:03]} b6 {[%emt 0:00:08]} 33. f5 {[%emt 0:00:10]} Qxd4+ {[%emt 0:00:12]} 34. cxd4 c5 {[%emt 0:00:05]} 35. Ke3 {[%emt 0:00:10]} c4 {[%emt 0:00:28]} 36. Bc2 {[%emt 0:00:06]} b5 {[%emt 0:00:07]} 37. bxc4 {[%emt 0:00:03]} bxc4 {[%emt 0:00:06]} 38. Kd2 {[%emt 0:00:03]} Kd8 {[%emt 0:00:08]} 39. Kc3 {[%emt 0:00:03]} Kc7 {[%emt 0:00:02]} 40. Bd1 {[%emt 0:00:18]} h5 {[%emt 0:00:24]} 41. Bf3 {[%emt 0:00:23]} hxg4 {[%emt 0:00:09]} 42. hxg4 {[%emt 0:00:01]} Kc6 {[%emt 0:00:16]} 43. Bd1 {[%emt 0:00:23]} Kc7 {[%emt 0:00:03]} 44. Bc2 {[%emt 0:00:06]} Kd8 {[%emt 0:00:13]} 45. g5 {[%emt 0:00:06]} Ke7 {[%emt 0:00:10]} 46. f6+ {[%emt 0:00:12]} gxf6 {[%emt 0:00:01]} 47. gxf6+ {[%emt 0:00:02]} Ke6 {[%emt 0:00:06]} 48. Bd1 {[%emt 0:00:04]} Kf5 {[%emt 0:00:06]} 49. Bf3 {[%emt 0:00:06]} Bc6 {[%emt 0:00:10]} 50. Bg2 {[%emt 0:00:06]} Kf4 {[%emt 0:00:06]} 51. e6 {[%emt 0:00:17]} Be8 {[%emt 0:00:16]} 52. Bxd5 {[%emt 0:00:08]} fxe6 {[%emt 0:00:49]} 53. Bxe6 {[%emt 0:00:02]} Ke4 {[%emt 0:00:07]} 54. f7 1-0